fUSD/lending_fUSD_20260221
["ID","MTS","AMOUNT","RATE_DAILY","PERIOD"]
[406229756,1771638638053,-500.0,0.00016663,2]
[406229757,1771638638062,-296.45153209,0.00016663,2]
[406229758,1771638638072,-500.0,0.00016663,2]
[406229759,1771638638081,-500.0,0.00016663,2]
[406229760,1771638638091,-500.0,0.00016663,2]
[406229761,1771638638100,-500.0,0.00016663,2]
[406229762,1771638638109,-500.0,0.00016663,2]
[406229763,1771638638118,-500.0,0.00016663,2]
[406229764,1771638638128,-500.0,0.00016663,2]
[406229765,1771638638137,-500.0,0.00016663,2]
[406229766,1771638638147,-500.0,0.00016663,2]
[406229767,1771638638156,-500.0,0.00016663,2]
[406229768,1771638638166,-500.0,0.00016663,2]
[406229769,1771638638175,-500.0,0.00016663,2]
[406229770,1771638638184,-500.0,0.00016663,2]
[406229771,1771638638193,-500.0,0.00016663,2]
[406229773,1771638638202,-500.0,0.00016663,2]
[406229775,1771638638210,-500.0,0.00016663,2]
[406229777,1771638638220,-500.0,0.00016663,2]
[406229779,1771638638228,-500.0,0.00016663,2]
[406229781,1771638638238,-500.0,0.00016663,2]
[406229782,1771638638247,-500.0,0.00016663,2]
[406229783,1771638638256,-500.0,0.00016663,2]
[406229784,1771638638265,-500.0,0.00016663,2]
[406229785,1771638638274,-500.0,0.00016663,2]
[406229786,1771638638283,-500.0,0.00016663,2]
[406229787,1771638638292,-500.0,0.00016663,2]
[406229788,1771638638302,-562.15306845,0.00016663,2]
[406229789,1771638638311,-500.0,0.00016663,2]
[406229790,1771638638320,-500.0,0.00016663,2]
[406229791,1771638638329,-500.0,0.00016663,2]
[406229792,1771638638338,-500.0,0.00016663,2]
[406229793,1771638638347,-500.0,0.00016663,2]
[406229794,1771638638361,-500.0,0.00016663,2]
[406229795,1771638638370,-500.0,0.00016663,2]
[406229796,1771638638380,-500.0,0.00016663,2]
[406229797,1771638638390,-500.0,0.00016663,2]
[406229798,1771638638400,-500.0,0.00016663,2]
[406229799,1771638638409,-500.0,0.00016663,2]
[406229800,1771638638418,-500.0,0.00016663,2]
[406229801,1771638638427,-500.0,0.00016663,2]
[406229802,1771638638439,-500.0,0.00016663,2]
[406229803,1771638638448,-500.0,0.00016663,2]
[406229804,1771638638457,-500.0,0.00016663,2]
[406229805,1771638638467,-500.0,0.00016663,2]
[406229806,1771638638476,-500.0,0.00016663,2]
[406229807,1771638638485,-500.0,0.00016663,2]
[406229808,1771638638495,-500.0,0.00016663,2]
[406229809,1771638638504,-500.0,0.00016663,2]
[406229810,1771638638513,-500.0,0.00016663,2]
[406229811,1771638638522,-500.0,0.00016663,2]
[406229812,1771638638532,-500.0,0.00016663,2]
[406229813,1771638638541,-500.0,0.00016663,2]
[406229814,1771638638550,-500.0,0.00016663,2]
[406229815,1771638638560,-500.0,0.00016663,2]
[406229816,1771638638570,-500.0,0.00016663,2]
[406229817,1771638638580,-500.0,0.00016663,2]
[406229818,1771638638589,-595.79478538,0.00016663,2]
[406229819,1771638638599,-500.0,0.00016663,2]
[406229820,1771638638607,-500.0,0.00016663,2]
[406229821,1771638638617,-350.00000001,0.00016663,2]
[406229822,1771638638627,-500.0,0.00016664,2]
[406229823,1771638638636,-1059.869,0.00016686,2]
[406229824,1771638638645,-180.89,0.00016686,2]
[406229825,1771638638654,-4400.0,0.000167,6]
[406229826,1771638638664,-700.0,0.000167,6]
[406229827,1771638638673,-200.0,0.00016754,2]
[406229828,1771638638683,-542.30573458,0.00016754,2]
[406229829,1771638638693,-597.51516709,0.00016754,2]
[406229830,1771638638702,-1768.10915521,0.00016755,2]
[406229831,1771638638711,-395.15,0.00016759,2]
[406229832,1771638638721,-247.26,0.00016759,2]
[406229833,1771638638731,-405.17,0.00016763,2]
[406229834,1771638638741,-500.0,0.00016763,2]
[406229835,1771638638750,-309.70147066,0.00016763,2]
[406229836,1771638638760,-500.0,0.00016763,2]
[406229837,1771638638769,-500.0,0.00016763,2]
[406229838,1771638638778,-500.0,0.00016763,2]
[406229839,1771638638787,-500.0,0.00016763,2]
[406229840,1771638638797,-500.0,0.00016763,2]
[406229841,1771638638806,-500.0,0.00016763,2]
[406229842,1771638638815,-500.0,0.00016763,2]
[406229843,1771638638824,-500.0,0.00016763,2]
[406229844,1771638638834,-500.0,0.00016763,2]
[406229845,1771638638843,-500.0,0.00016763,2]
[406229846,1771638638853,-500.0,0.00016763,2]
[406229847,1771638638862,-500.0,0.00016763,2]
[406229848,1771638638871,-500.0,0.00016763,2]
[406229849,1771638638880,-568.06839045,0.00016763,2]
[406229850,1771638638890,-505.36393545,0.00016763,2]
[406229851,1771638638899,-300.0,0.00016763,2]
[406229852,1771638638908,-187.70735379,0.0001678,2]
[406229853,1771638638917,-166.66,0.00016787,2]
[406229854,1771638638927,-5900.0,0.000168,6]
[406229855,1771638638936,-900.0,0.000168,6]
[406229856,1771638638945,-300.0,0.0001681,2]
[406229857,1771638638954,-51259.54565431,0.00016811,2]
[406229858,1771638638964,-54407.46254236,0.00016811,2]
[406229859,1771638638973,-877.99,0.00016849,2]
[406229860,1771638638983,-7015.0,0.00016849,2]
[406229861,1771638638992,-245.0,0.00016856,2]
[406229862,1771638639002,-151.0,0.00016861,2]
[406229863,1771638639011,-596.47,0.00016863,2]
[406229864,1771638639021,-596.47,0.00016863,2]
[406229865,1771638639031,-596.47,0.00016863,2]
[406229866,1771638639041,-596.47,0.00016863,2]
[406229867,1771638639050,-596.47,0.00016863,2]
[406229868,1771638639060,-596.47,0.00016863,2]
[406229869,1771638639071,-596.47,0.00016863,2]
[406229870,1771638639081,-596.47,0.00016863,2]
[406229871,1771638639091,-596.47,0.00016863,2]
[406229872,1771638639101,-596.47,0.00016863,2]
[406229873,1771638639111,-596.47,0.00016863,2]
[406229874,1771638639121,-596.47,0.00016863,2]
[406229875,1771638639131,-596.47,0.00016863,2]
[406229876,1771638639140,-596.47,0.00016863,2]
[406229877,1771638639150,-596.47,0.00016863,2]
[406229878,1771638639160,-1097.63,0.00016863,2]
[406229879,1771638639170,-1097.63,0.00016863,2]
[406229880,1771638639180,-1097.63,0.00016863,2]
[406229881,1771638639189,-1097.63,0.00016863,2]
[406229882,1771638639198,-1097.63,0.00016863,2]
[406229883,1771638639208,-1097.63,0.00016863,2]
[406229884,1771638639217,-1097.63,0.00016863,2]
[406229885,1771638639227,-1097.63,0.00016863,2]
[406229886,1771638639236,-1097.63,0.00016863,2]
[406229887,1771638639247,-1097.63,0.00016863,2]
[406229888,1771638639256,-1097.63,0.00016863,2]
[406229889,1771638639266,-1097.63,0.00016863,2]
[406229890,1771638639275,-1097.63,0.00016863,2]
[406229891,1771638639285,-1097.63,0.00016863,2]
[406229892,1771638639294,-1097.63,0.00016863,2]
[406229893,1771638639304,-300.0,0.00016863,2]
[406229894,1771638639314,-7400.0,0.000169,6]
[406229895,1771638639546,-1100.0,0.000169,6]
[406229896,1771638639557,-500.0,0.00016938,2]
[406229897,1771638639568,-1768.10915521,0.00016946,2]
[406229898,1771638639579,-300.0,0.00016966,2]
[406229899,1771638639588,-51259.54565431,0.00016967,2]
[406229900,1771638639599,-54407.46254236,0.00016967,2]
[406229901,1771638639609,-300.0,0.00017,2]
[406229902,1771638639619,-500.0,0.00017,2]
[406229903,1771638639629,-357.39131147,0.00017,2]
[406229904,1771638639638,-290.0,0.00017026,2]
[406229905,1771638639647,-405.17,0.00017037,2]
[406229906,1771638639657,-596.47,0.00017043,2]
[406229907,1771638639666,-1097.63,0.00017043,2]
[406229908,1771638639675,-500.0,0.00017043,2]
[406229909,1771638639685,-500.0,0.00017043,2]
[406229910,1771638639694,-500.0,0.00017043,2]
[406229911,1771638639704,-500.0,0.00017043,2]
[406229912,1771638639713,-500.0,0.00017043,2]
[406229913,1771638639722,-500.0,0.00017043,2]
[406229914,1771638639731,-174.61919141,0.00017043,2]
[406229915,1771638639740,-500.0,0.00017043,2]
[406229916,1771638639748,-693.3919763,0.00017043,2]
[406229917,1771638639757,-500.0,0.00017043,2]
[406229918,1771638639766,-500.0,0.00017043,2]
[406229919,1771638639775,-500.0,0.00017043,2]
[406229920,1771638639784,-500.0,0.00017043,2]
[406229921,1771638639793,-187.70735379,0.0001706,2]
[406229923,1771638639803,-300.0,0.00017097,2]
[406229924,1771638639811,-719.04747942,0.00017098,2]
[406229925,1771638639820,-32860.742,0.00017098,2]
[406229926,1771638639829,-6716.3887,0.00017098,2]
[406229927,1771638639838,-300.0,0.00017121,2]
[406229928,1771638639846,-51259.54565431,0.00017122,2]
[406229929,1771638639855,-54407.46254236,0.00017122,2]
[406229930,1771638639864,-1768.10915521,0.00017137,2]
[406229931,1771638639873,-745.65223616,0.00017153,2]
[406229932,1771638639882,-1506.05144306,0.000172,2]
[406229933,1771638639890,-355.0,0.00017205,2]
[406229934,1771638639899,-773.2413689,0.00017208,2]
[406229935,1771638639909,-500.0,0.00017212,2]
[406229936,1771638639918,-801.85129955,0.00017263,2]
[406229937,1771638639926,-51259.54565431,0.00017278,2]
[406229938,1771638639935,-54407.46254236,0.00017278,2]
[406229939,1771638639944,-200.0,0.00017302,2]
[406229940,1771638639953,-300.06077373,0.00017303,2]
[406229941,1771638639963,-301.7953286,0.00017303,2]
[406229942,1771638639972,-248.5747845,0.00017303,2]
[406229943,1771638639981,-195.0,0.00017303,2]
[406229944,1771638639990,-600.0,0.00017303,2]
[406229945,1771638639999,-502.0647315,0.00017303,2]
[406229946,1771638640009,-200.0,0.00017303,2]
[406229947,1771638640018,-150.04229698,0.00017303,2]
[406229948,1771638640027,-405.17,0.00017311,2]
[406229949,1771638640036,-500.0,0.00017314,2]
[406229950,1771638640045,-500.0,0.00017314,2]
[406229951,1771638640054,-247.56904417,0.00017314,2]
[406229952,1771638640063,-500.0,0.00017314,2]
[406229953,1771638640072,-831.51979763,0.00017318,2]
[406229954,1771638640081,-1768.10915521,0.00017327,2]
[406229955,1771638640090,-187.70735379,0.0001734,2]
[406229956,1771638640099,-596.47,0.00017366,2]
[406229957,1771638640108,-1097.63,0.00017366,2]
[406229958,1771638640117,-862.28603014,0.00017373,2]
[406229959,1771638640126,-894.19061326,0.00017428,2]
[406229960,1771638640135,-51259.54565431,0.00017433,2]
[406229961,1771638640144,-54407.46254236,0.00017433,2]
[406229962,1771638640153,-577.51903928,0.00017473,2]
[406229963,1771638640162,-927.27566595,0.00017483,2]
[406229964,1771638640172,-500.0,0.00017486,2]
[406229965,1771638640182,-1768.10915521,0.00017518,2]
[406229966,1771638640191,-961.58486559,0.00017538,2]
[406229967,1771638640200,-405.17,0.00017585,2]
[406229968,1771638640209,-51259.54565431,0.00017589,2]
[406229969,1771638640218,-181.08010149,0.00017591,2]
[406229970,1771638640226,-997.16350561,0.00017593,2]
[406229971,1771638640235,-187.70735379,0.0001762,2]
[406229972,1771638640244,-596.47,0.00017633,2]
[406229973,1771638640253,-1097.63,0.00017633,2]
[406229974,1771638640262,-853.04516733,0.0001764,2]
[406229975,1771638640271,-247.26,0.00017641,2]
[406229976,1771638640281,-505.61228041,0.00017665,2]
[406229977,1771638640290,-500.0,0.00017665,2]
[406229978,1771638640299,-500.0,0.00017665,2]
[406229979,1771638640308,-506.57389778,0.00017665,2]
[406229980,1771638640317,-1600.0,0.00017696,2]
[406229981,1771638640327,-2006.0,0.000177,2]
[406229982,1771638640335,-1768.10915521,0.00017709,2]
[406229983,1771638640345,-51259.54565431,0.00017744,2]
[406229984,1771638640357,-628.48505003,0.0001776,2]
[406229985,1771638640367,-179.739528,0.00017762,2]
[406229986,1771638640376,-935.0,0.00017776,2]
[406229987,1771638640385,-500.0,0.0001778,2]
[406229988,1771638640394,-500.0,0.0001778,2]
[406229989,1771638640403,-511.58629703,0.0001778,2]
[406229990,1771638640413,-1400.0,0.000178,6]
[406229991,1771638640422,-200.0,0.000178,6]
[406229992,1771638640431,-596.47,0.00017807,2]
[406229993,1771638640439,-1097.63,0.00017807,2]
[406229994,1771638640448,-500.0,0.00017808,2]
[406229995,1771638640457,-500.0,0.00017808,2]
[406229996,1771638640467,-500.0,0.00017808,2]
[406229997,1771638640476,-500.0,0.00017808,2]
[406229998,1771638640485,-500.0,0.00017808,2]
[406229999,1771638640494,-500.0,0.00017808,2]
[406230000,1771638640502,-418.76898774,0.00017808,2]
[406230001,1771638640511,-500.0,0.00017808,2]
[406230002,1771638640520,-500.0,0.00017808,2]
[406230003,1771638640529,-500.0,0.00017808,2]
[406230004,1771638640538,-500.0,0.00017808,2]
[406230005,1771638640548,-500.0,0.00017808,2]
[406230006,1771638640556,-500.0,0.00017808,2]
[406230007,1771638640565,-500.0,0.00017808,2]
[406230008,1771638640575,-500.0,0.00017808,2]
[406230009,1771638640584,-500.0,0.00017808,2]
[406230010,1771638640593,-500.0,0.00017808,2]
[406230011,1771638640603,-500.0,0.00017808,2]
[406230012,1771638640612,-1211.07315407,0.00017808,2]
[406230013,1771638640621,-1211.07315407,0.00017808,2]
[406230014,1771638640630,-1211.07315407,0.00017808,2]
[406230015,1771638640639,-1211.07315407,0.00017808,2]
[406230016,1771638640650,-1211.07315407,0.00017808,2]
[406230017,1771638640659,-1211.07315407,0.00017808,2]
[406230018,1771638640668,-1211.07315407,0.00017808,2]
[406230019,1771638640677,-1211.07315407,0.00017808,2]
[406230020,1771638640686,-1211.07315407,0.00017808,2]
[406230021,1771638640696,-1211.07315407,0.00017808,2]
[406230022,1771638640705,-1211.07315407,0.00017808,2]
[406230023,1771638640713,-800.0,0.00017808,2]
[406230024,1771638640722,-1000.0,0.00017832,2]
[406230025,1771638640733,-200.0,0.0001785,2]
[406230026,1771638640743,-500.0,0.00017856,2]
[406230027,1771638640754,-200.0,0.00017856,2]
[406230028,1771638640763,-405.18811006,0.00017859,2]
[406230029,1771638640772,-162.93997784,0.00017873,2]
[406230030,1771638640781,-246.364609,0.00017873,2]
[406230031,1771638640792,-500.41653761,0.00017873,2]
[406230032,1771638640803,-503.18537404,0.00017873,2]
[406230033,1771638640812,-501.05660533,0.00017873,2]
[406230034,1771638640821,-500.95052506,0.00017873,2]
[406230035,1771638640830,-165.27434071,0.00017873,2]
[406230036,1771638640840,-503.5027165,0.00017873,2]
[406230037,1771638640850,-501.38512914,0.00017873,2]
[406230038,1771638640859,-307.71196301,0.00017873,2]
[406230039,1771638640868,-230.31122448,0.00017873,2]
[406230040,1771638640885,-168.71198045,0.00017873,2]
[406230041,1771638640894,-493.47361044,0.00017873,2]
[406230042,1771638640903,-501.34299668,0.00017873,2]
[406230043,1771638640911,-500.49256887,0.00017873,2]
[406230044,1771638640920,-502.9045905,0.00017873,2]
[406230045,1771638640929,-501.3064784,0.00017873,2]
[406230046,1771638640939,-500.71383968,0.00017873,2]
[406230047,1771638640948,-501.37835228,0.00017873,2]
[406230048,1771638640957,-184.37223932,0.00017873,2]
[406230049,1771638640966,-166.88843163,0.00017873,2]
[406230050,1771638640975,-501.32982636,0.00017873,2]
[406230051,1771638640985,-503.58870457,0.00017873,2]
[406230052,1771638640994,-500.31194275,0.00017873,2]
[406230053,1771638641003,-164.4744294,0.00017873,2]
[406230054,1771638641013,-500.38903412,0.00017873,2]
[406230055,1771638641022,-500.19651151,0.00017873,2]
[406230056,1771638641032,-167.41603795,0.00017873,2]
[406230057,1771638641041,-500.8784215,0.00017873,2]
[406230058,1771638641050,-500.5604227,0.00017873,2]
[406230059,1771638641060,-501.02670572,0.00017873,2]
[406230060,1771638641069,-501.90174129,0.00017873,2]
[406230061,1771638641078,-504.36409669,0.00017873,2]
[406230062,1771638641087,-500.18211712,0.00017873,2]
[406230063,1771638641096,-37281.85411756,0.00017898,2]
[406230064,1771638641107,-500.0,0.00017899,2]
[406230065,1771638641116,-500.0,0.00017899,2]
[406230066,1771638641126,-889.0,0.000179,2]
[406230067,1771638641135,-381.93010573,0.000179,3]
[406230068,1771638641144,-2000.0,0.000179,2]
[406230069,1771638641154,-1400.0,0.000179,6]
[406230070,1771638641163,-200.0,0.000179,6]
[406230071,1771638641171,-1768.10915521,0.000179,2]
[406230072,1771638641181,-4931.44079991,0.000179,2]
[406230073,1771638641190,-187.70735379,0.000179,2]
[406230074,1771638641199,-1506.05144306,0.000179,2]
[406230075,1771638641209,-51259.54565431,0.000179,2]
[406230076,1771638641219,-151.0,0.0001797,2]
[406230077,1771638641228,-596.47,0.00017972,2]
[406230078,1771638641237,-596.47,0.00017972,2]
[406230079,1771638641246,-596.47,0.00017972,2]
[406230080,1771638641255,-596.47,0.00017972,2]
[406230081,1771638641264,-596.49841681,0.00017972,2]
[406230082,1771638641273,-1097.63,0.00017972,2]
[406230083,1771638641282,-1097.63,0.00017972,2]
[406230084,1771638641292,-1097.63,0.00017972,2]
[406230085,1771638641301,-1097.63,0.00017972,2]
[406230086,1771638641310,-1097.73377918,0.00017972,2]
[406230087,1771638641319,-72838.0,0.00017973,2]
[406230088,1771638641329,-500.0,0.00017973,2]
[406230089,1771638641338,-500.0,0.00017973,2]
[406230090,1771638641347,-500.0,0.00017973,2]
[406230091,1771638641360,-500.0,0.00017973,2]
[406230092,1771638641370,-500.0,0.00017973,2]
[406230093,1771638641380,-500.0,0.00017973,2]
[406230094,1771638641391,-500.0,0.00017973,2]
[406230095,1771638641402,-500.0,0.00017973,2]
[406230096,1771638641411,-500.0,0.00017973,2]
[406230097,1771638641419,-500.0,0.00017973,2]
[406230098,1771638641430,-500.0,0.00017973,2]
[406230099,1771638641443,-500.0,0.00017973,2]
[406230100,1771638641452,-500.0,0.00017973,2]
[406230101,1771638641463,-500.0,0.00017973,2]
[406230102,1771638641473,-500.50855099,0.00017973,2]
[406230103,1771638641482,-500.0,0.00017973,2]
[406230104,1771638641491,-500.0,0.00017973,2]
[406230105,1771638641500,-500.0,0.00017973,2]
[406230106,1771638641509,-500.0,0.00017973,2]
[406230107,1771638641518,-533.24438323,0.00017973,2]
[406230108,1771638641527,-500.0,0.00017973,2]
[406230109,1771638641536,-500.0,0.00017973,2]
[406230110,1771638641546,-502.50033053,0.00017973,2]
[406230111,1771638641556,-500.0,0.00017973,2]
[406230112,1771638641567,-619.14973919,0.00017973,2]
[406230113,1771638641577,-342.76331381,0.00017973,2]
[406230114,1771638641586,-500.0,0.00017973,2]
[406230115,1771638641595,-500.0,0.00017973,2]
[406230116,1771638641604,-568.38984139,0.00017973,2]
[406230117,1771638641613,-500.0,0.00017973,2]
[406230118,1771638641622,-500.0,0.00017973,2]
[406230119,1771638641631,-500.0,0.00017973,2]
[406230120,1771638641642,-500.0,0.00017973,2]
[406230121,1771638641651,-500.0,0.00017973,2]
[406230122,1771638641660,-500.39813374,0.00017973,2]
[406230123,1771638641669,-500.0,0.00017973,2]
[406230124,1771638641678,-500.0,0.00017973,2]
[406230125,1771638641687,-500.0,0.00017973,2]
[406230126,1771638641696,-500.0,0.00017973,2]
[406230127,1771638641705,-500.0,0.00017973,2]
[406230128,1771638641715,-500.98392686,0.00017973,2]
[406230129,1771638641724,-500.0,0.00017973,2]
[406230130,1771638641733,-500.0,0.00017973,2]
[406230131,1771638641743,-500.61890961,0.00017973,2]
[406230132,1771638641753,-500.0,0.00017973,2]
[406230133,1771638641762,-151.0,0.00017989,2]
[406230134,1771638641771,-1539.36753152,0.0001799,2]
[406230135,1771638641780,-300.0,0.00017991,2]
[406230136,1771638641790,-630484.7063833,0.00017992,2]
[406230137,1771638641799,-560.559874,0.00017992,2]
[406230138,1771638641807,-560.559874,0.00017992,2]
[406230139,1771638641816,-211.424329,0.00017992,2]
[406230140,1771638641826,-560.559874,0.00017992,2]
[406230141,1771638641835,-211.424329,0.00017992,2]
[406230142,1771638641844,-560.559874,0.00017992,2]
[406230143,1771638641853,-211.424329,0.00017992,2]
[406230144,1771638641862,-211.424329,0.00017992,2]
[406230145,1771638641870,-151.0,0.00017992,2]
[406230146,1771638641879,-153.66415509,0.00017997,2]
[406230147,1771638641888,-500.0,0.00017999,2]
[406230148,1771638641898,-500.0,0.00017999,2]
[406230149,1771638641906,-639.11939235,0.00017999,2]
[406230150,1771638641916,-500.0,0.00017999,2]
[406230151,1771638641925,-500.0,0.00017999,2]
[406230152,1771638641933,-500.0,0.00017999,2]
[406230153,1771638641942,-500.0,0.00017999,2]
[406230154,1771638641951,-500.0,0.00017999,2]
[406230155,1771638641960,-500.0,0.00017999,2]
[406230156,1771638641969,-500.0,0.00017999,2]
[406230157,1771638641978,-500.0,0.00017999,2]
[406230158,1771638641988,-538.6620259,0.00017999,2]
[406230159,1771638641997,-500.0,0.00017999,2]
[406230160,1771638642006,-500.0,0.00017999,2]
[406230161,1771638642015,-500.0,0.00017999,2]
[406230162,1771638642024,-627.47385881,0.00017999,2]
[406230163,1771638642033,-500.0,0.00017999,2]
[406230164,1771638642043,-500.0,0.00017999,2]
[406230165,1771638642052,-500.0,0.00017999,2]
[406230166,1771638642061,-500.0,0.00017999,2]
[406230167,1771638642070,-500.0,0.00017999,2]
[406230168,1771638642079,-500.0,0.00017999,2]
[406230169,1771638642087,-500.0,0.00017999,2]
[406230170,1771638642097,-500.0,0.00017999,2]
[406230171,1771638642107,-500.0,0.00017999,2]
[406230172,1771638642116,-500.0,0.00017999,2]
[406230173,1771638642125,-500.0,0.00017999,2]
[406230174,1771638642135,-500.0,0.00017999,2]
[406230175,1771638642145,-494.8265662,0.00017999,2]
[406230176,1771638642158,-300.0,0.00017999,2]
[406230177,1771638642169,-296.5196054,0.00017999,2]
[406230178,1771638642181,-1290539.9671775,0.00018,2]
[406230179,1771638642425,-17434.3958712,0.00018,2]
[406230180,1771638642461,-215761.86101218,0.00018,2]
[406230190,1771638644473,-1815.74938873,0.00017589,2]
[406230191,1771638644486,-5530.0,0.00017589,2]
[406230192,1771638644684,-1650.0,0.00017589,2]
[406230193,1771638644812,-11464.46976567,0.00017589,2]
[406230194,1771638644827,-9384.62838452,0.00017589,2]
[406230195,1771638644842,-6456.76566377,0.00017589,2]
[406230196,1771638644857,-9219.2,0.00017589,2]
[406230197,1771638644872,-2833.845,0.00017589,2]
[406230198,1771638644898,-25.02637267,0.00017589,2]
[406230199,1771638644921,-1011.63783249,0.00017589,2]
[406230200,1771638644936,-998.9063611,0.00017589,2]
[406230201,1771638644953,-4017.23377341,0.00017589,2]
[406230202,1771638644966,-352598.54414062,0.00018,2]
[406230203,1771638645686,-12678.21375174,0.00018,2]
[406230204,1771638645699,-558301.54600239,0.00018,2]
[406230205,1771638645711,-3007.28195683,0.00018,2]
[406230206,1771638645841,-808.00460389,0.00018,2]
[406230207,1771638645856,-904.64662748,0.00018,2]
[406230208,1771638645894,-18513.65447865,0.00018,2]
[406230209,1771638645908,-9185.96227502,0.00018,2]
[406230210,1771638645924,-476.59405119,0.00018,2]
[406230211,1771638645952,-11277.81555068,0.00018,2]
[406230213,1771638681291,-500.0,0.00016763,2]
[406230214,1771638681318,-1000.0,0.00017093,2]
[406230215,1771638681346,-1000.0,0.00017093,2]
[406230216,1771638681377,-1000.0,0.00017093,2]
[406230217,1771638681404,-1000.0,0.00017093,2]
[406230218,1771638681432,-214.0,0.00017523,2]
[406230219,1771638681460,-22.01,0.00017743,2]
[406230220,1771638681561,-527.99,0.00017743,2]
[406230221,1771638681591,-300.0,0.00017743,2]
[406230222,1771638681623,-9400.01,0.00017744,2]
[406230223,1771638684160,-3645.4051,0.00016564,2]
[406230224,1771638684193,-2709.1998,0.00017744,2]
[406230225,1771638687174,-10000.01,0.00017744,2]
[406230226,1771639052038,-2083.98,0.00015751,2]
[406230227,1771639052066,-517.0,0.00016,2]
[406230228,1771639052093,-300.0,0.00016133,2]
[406230229,1771639052122,-300.0,0.00016133,2]
[406230230,1771639099153,-10000.01,0.00016134,2]
[406230231,1771639099270,-2986.66341685,0.00016134,2]
[406230232,1771639099293,-4026.6831663,0.00016134,2]
[406230233,1771639099409,-550.0,0.00016142,2]
[406230234,1771639099443,-8900.01,0.00016143,2]
[406230235,1771639099505,-10000.01,0.00016143,2]
[406230236,1771639105153,-10000.01,0.00016143,2]
[406230237,1771639105264,-10000.01,0.00016143,2]
[406230238,1771639105414,-10000.01,0.00016143,2]
[406230239,1771639105738,-10000.01,0.00016143,2]
[406230241,1771639623990,-168.17,0.00011523,2]
[406230242,1771639624023,-193.11,0.00013314,2]
[406230243,1771639624050,-300.0,0.00013376,2]
[406230244,1771639624080,-300.0,0.00013376,2]
[406230245,1771639624112,-193.11,0.00013438,2]
[406230246,1771639624141,-193.11,0.00013561,2]
[406230247,1771639624167,-343.11611708,0.00013561,2]
[406230248,1771639624194,-300.0,0.00013561,2]
[406230249,1771639624221,-300.0,0.00013561,2]
[406230250,1771639624250,-251.57804149,0.00013561,2]
[406230251,1771639624279,-193.11,0.00013685,2]
[406230252,1771639624307,-193.11,0.00013809,2]
[406230253,1771639624339,-193.11,0.00013932,2]
[406230254,1771639624367,-193.11,0.00014056,2]
[406230255,1771639624395,-193.11,0.0001418,2]
[406230256,1771639624424,-193.11,0.00014303,2]
[406230257,1771639624453,-300.0,0.00014426,2]
[406230258,1771639624484,-193.11,0.00014427,2]
[406230259,1771639624514,-200.0,0.00014441,2]
[406230260,1771639624546,-193.11,0.00014551,2]
[406230261,1771639624979,-825.86168286,0.00014621,2]
[406230262,1771639626784,-248.5747845,0.00012676,2]
[406230263,1771639626811,-1302.88831714,0.00014621,2]
[406230264,1771639626838,-150.04229698,0.00014645,2]
[406230265,1771639626866,-577.51903928,0.00014645,2]
[406230266,1771639626896,-300.06077373,0.00014645,2]
[406230267,1771639626927,-195.0,0.00014645,2]
[406230268,1771639626953,-195.0,0.00014645,2]
[406230269,1771639626982,-195.0,0.00014645,2]
[406230270,1771639627018,-300.0,0.00014645,2]
[406230271,1771639627052,-600.0,0.00014645,2]
[406230272,1771639627081,-502.0647315,0.00014645,2]